[Event "Titled Tuesday Blitz April 11 Early 2023"]
[White "Srihari L R"]
[Black "koncheto"]
[WhiteFideId "46617116"]
[WhiteElo "2334"]
[BlackElo "2555"]
[Result "1-0"]
[Round "05"]
[TimeControl "180+2"]
[Date "2023.04.11"]
[WhiteClock "0:00:23"]
[BlackClock "0:00:02"]

1. c4 {[%clk 0:03:00]}  Nf6 {[%clk 0:02:56]} 2. Nc3 {[%clk 0:03:01]}  e6 {[%clk 0:02:55]} 3. e4 {[%clk 0:03:00]}  d5 {[%clk 0:02:55]} 4. cxd5 {[%clk 0:02:56]}  exd5 {[%clk 0:02:56]} 5. e5 {[%clk 0:02:57]}  d4 {[%clk 0:02:55]} 6. exf6 {[%clk 0:02:57]}  dxc3 {[%clk 0:02:55]} 7. Bb5+ {[%clk 0:02:57]}  c6 {[%clk 0:02:49]} 8. Qe2+ {[%clk 0:02:58]}  Be6 {[%clk 0:02:49]} 9. Bc4 {[%clk 0:02:58]}  Qxf6 {[%clk 0:02:36]} 10. dxc3 {[%clk 0:02:58]}  Bd6 {[%clk 0:02:16]} 11. Nf3 {[%clk 0:02:51]}  O-O {[%clk 0:02:16]} 12. Bxe6 {[%clk 0:02:51]}  fxe6 {[%clk 0:02:13]} 13. O-O {[%clk 0:02:50]}  Bc7 {[%clk 0:02:09]} 14. Re1 {[%clk 0:02:44]}  Re8 {[%clk 0:02:08]} 15. Bg5 {[%clk 0:02:41]}  Qf7 {[%clk 0:02:01]} 16. Bh4 {[%clk 0:02:40]}  Nd7 {[%clk 0:01:58]} 17. Rad1 {[%clk 0:02:40]}  h6 {[%clk 0:01:52]} 18. Bg3 {[%clk 0:02:32]}  Nf6 {[%clk 0:01:47]} 19. Bxc7 {[%clk 0:02:08]}  Qxc7 {[%clk 0:01:47]} 20. Nd4 {[%clk 0:02:08]}  Rad8 {[%clk 0:01:32]} 21. Nxe6 {[%clk 0:02:00]}  Rxd1 {[%clk 0:01:31]} 22. Qxd1 {[%clk 0:02:01]}  Qe7 {[%clk 0:01:29]} 23. Re2 {[%clk 0:01:54]}  Qf7 {[%clk 0:00:57]} 24. Qe1 {[%clk 0:01:40]}  Ng4 {[%clk 0:00:48]} 25. f3 {[%clk 0:01:09]}  Nf6 {[%clk 0:00:47]} 26. a3 {[%clk 0:01:05]}  Nd5 {[%clk 0:00:45]} 27. Nd4 {[%clk 0:01:05]}  Rxe2 {[%clk 0:00:39]} 28. Qxe2 {[%clk 0:01:05]}  Nf4 {[%clk 0:00:40]} 29. Qe4 {[%clk 0:00:52]}  c5 {[%clk 0:00:28]} 30. Nf5 {[%clk 0:00:50]}  Qe6 {[%clk 0:00:13]} 31. Qxe6+ {[%clk 0:00:37]}  Nxe6 {[%clk 0:00:14]} 32. Nd6 {[%clk 0:00:37]}  Nd8 {[%clk 0:00:14]} 33. Kf2 {[%clk 0:00:34]}  Kf8 {[%clk 0:00:15]} 34. Ke3 {[%clk 0:00:35]}  Ke7 {[%clk 0:00:15]} 35. Nc8+ {[%clk 0:00:35]}  Ke6 {[%clk 0:00:14]} 36. Nxa7 {[%clk 0:00:36]}  Kd5 {[%clk 0:00:10]} 37. Kd3 {[%clk 0:00:30]}  Ne6 {[%clk 0:00:09]} 38. c4+ {[%clk 0:00:29]}  Ke5 {[%clk 0:00:09]} 39. g3 {[%clk 0:00:29]}  Nd4 {[%clk 0:00:09]} 40. f4+ {[%clk 0:00:24]}  Kf5 {[%clk 0:00:09]} 41. b4 {[%clk 0:00:24]}  b6 {[%clk 0:00:08]} 42. Nc8 {[%clk 0:00:23]}  Nf3 {[%clk 0:00:03]} 43. Nxb6 {[%clk 0:00:23]}  cxb4 {[%clk 0:00:02]} 44. axb4 {[%clk 0:00:24]}  Nxh2 {[%clk 0:00:02]} 45. c5 {[%clk 0:00:24]}  Ke6 {[%clk 0:00:02]} 46. c6 {[%clk 0:00:20]}  Kd6 {[%clk 0:00:02]} 47. b5 {[%clk 0:00:20]}  h5 {[%clk 0:00:02]} 48. Nc4+ {[%clk 0:00:21]}  Kc7 {[%clk 0:00:02]} 49. Kd4 {[%clk 0:00:21]}  Nf1 {[%clk 0:00:03]} 50. Kc5 {[%clk 0:00:21]}  Nxg3 {[%clk 0:00:04]} 51. b6+ {[%clk 0:00:21]}  Kc8 {[%clk 0:00:04]} 52. Nd6+ {[%clk 0:00:21]}  Kb8 {[%clk 0:00:02]} 53. c7+ {[%clk 0:00:22]}  Ka8 {[%clk 0:00:02]} 54. c8=Q# {[%clk 0:00:23]} 1-0


[Site "https://www.chess.com"]

[Event "Titled Tuesday Blitz April 11 Early 2023"]
[White "Yelisieiev, Yevhenii"]
[Black "Hambleton, Aman"]
[WhiteFideId "14139642"]
[BlackFideId "2606577"]
[WhiteElo "2425"]
[BlackElo "2511"]
[Result "1/2-1/2"]
[Round "05"]
[TimeControl "180+2"]
[Date "2023.04.11"]
[WhiteClock "0:01:16"]
[BlackClock "0:00:04"]

1. d4 {[%clk 0:03:00]}  Nf6 {[%clk 0:01:26]} 2. Nf3 {[%clk 0:03:01]}  e6 {[%clk 0:01:21]} 3. c4 {[%clk 0:03:00]}  b6 {[%clk 0:01:17]} 4. Nc3 {[%clk 0:02:56]}  Bb7 {[%clk 0:01:11]} 5. e3 {[%clk 0:02:51]}  Bb4 {[%clk 0:01:09]} 6. Bd3 {[%clk 0:02:51]}  O-O {[%clk 0:01:02]} 7. Qc2 {[%clk 0:02:52]}  c5 {[%clk 0:00:45]} 8. Bd2 {[%clk 0:02:43]}  cxd4 {[%clk 0:00:20]} 9. exd4 {[%clk 0:02:32]}  d5 {[%clk 0:00:18]} 10. a3 {[%clk 0:02:28]}  dxc4 {[%clk 0:00:09]} 11. Bxc4 {[%clk 0:02:21]}  Bxc3 {[%clk 0:00:08]} 12. Bxc3 {[%clk 0:02:20]}  Ba6 {[%clk 0:00:03]} 13. Bxa6 {[%clk 0:02:18]}  Nxa6 {[%clk 0:00:04]} 14. O-O {[%clk 0:02:18]}  Rc8 {[%clk 0:00:04]} 15. Qa4 {[%clk 0:02:16]}  Nc7 {[%clk 0:00:02]} 16. Qxa7 {[%clk 0:02:16]}  Nb5 {[%clk 0:00:02]} 17. Qa6 {[%clk 0:02:14]}  Nxc3 {[%clk 0:00:02]} 18. bxc3 {[%clk 0:02:14]}  Rxc3 {[%clk 0:00:03]} 19. Rfb1 {[%clk 0:02:14]}  Nd5 {[%clk 0:00:03]} 20. h3 {[%clk 0:02:08]}  Qa8 {[%clk 0:00:03]} 21. Qxa8 {[%clk 0:02:02]}  Rxa8 {[%clk 0:00:04]} 22. a4 {[%clk 0:02:03]}  Rc4 {[%clk 0:00:04]} 23. Ne5 {[%clk 0:01:58]}  Rcxa4 {[%clk 0:00:04]} 24. Rxa4 {[%clk 0:01:57]}  Rxa4 {[%clk 0:00:05]} 25. Nd7 {[%clk 0:01:57]}  Ra6 {[%clk 0:00:02]} 26. Rc1 {[%clk 0:01:57]}  h6 {[%clk 0:00:02]} 27. Rc8+ {[%clk 0:01:57]}  Kh7 {[%clk 0:00:02]} 28. Nf8+ {[%clk 0:01:58]}  Kg8 {[%clk 0:00:02]} 29. Nxe6+ {[%clk 0:01:56]}  Kh7 {[%clk 0:00:03]} 30. Nf8+ {[%clk 0:01:55]}  Kg8 {[%clk 0:00:04]} 31. Rd8 {[%clk 0:01:45]}  Nf6 {[%clk 0:00:03]} 32. Ng6+ {[%clk 0:01:44]}  Kh7 {[%clk 0:00:04]} 33. Nf8+ {[%clk 0:01:44]}  Kg8 {[%clk 0:00:04]} 34. Nd7+ {[%clk 0:01:44]}  Kh7 {[%clk 0:00:04]} 35. Ne5 {[%clk 0:01:43]}  Ra7 {[%clk 0:00:03]} 36. Rb8 {[%clk 0:01:43]}  Ra1+ {[%clk 0:00:01]} 37. Kh2 {[%clk 0:01:43]}  Rd1 {[%clk 0:00:01]} 38. Rxb6 {[%clk 0:01:41]}  Rxd4 {[%clk 0:00:01]} 39. Nxf7 {[%clk 0:01:42]}  Rd2 {[%clk 0:00:02]} 40. f3 {[%clk 0:01:41]}  Nd5 {[%clk 0:00:02]} 41. Rd6 {[%clk 0:01:38]}  Rd1 {[%clk 0:00:02]} 42. Ne5 {[%clk 0:01:36]}  Ne3 {[%clk 0:00:02]} 43. Rxd1 {[%clk 0:01:36]}  Nxd1 {[%clk 0:00:03]} 44. Kg3 {[%clk 0:01:37]}  Ne3 {[%clk 0:00:04]} 45. Kf2 {[%clk 0:01:36]}  Nf5 {[%clk 0:00:04]} 46. g4 {[%clk 0:01:37]}  Nd4 {[%clk 0:00:04]} 47. Ke3 {[%clk 0:01:37]}  Ne6 {[%clk 0:00:04]} 48. f4 {[%clk 0:01:36]}  Kg8 {[%clk 0:00:05]} 49. f5 {[%clk 0:01:35]}  Ng5 {[%clk 0:00:05]} 50. h4 {[%clk 0:01:35]}  Nh7 {[%clk 0:00:05]} 51. Kd4 {[%clk 0:01:31]}  Nf6 {[%clk 0:00:05]} 52. Kc5 {[%clk 0:01:31]}  Kf8 {[%clk 0:00:03]} 53. Kd6 {[%clk 0:01:31]}  Ne4+ {[%clk 0:00:03]} 54. Ke6 {[%clk 0:01:30]}  Ng3 {[%clk 0:00:02]} 55. Ng6+ {[%clk 0:01:29]}  Kg8 {[%clk 0:00:02]} 56. Ne7+ {[%clk 0:01:29]}  Kf8 {[%clk 0:00:02]} 57. Nd5 {[%clk 0:01:25]}  Ne4 {[%clk 0:00:01]} 58. Ke5 {[%clk 0:01:22]}  Nf2 {[%clk 0:00:01]} 59. g5 {[%clk 0:01:23]}  hxg5 {[%clk 0:00:01]} 60. hxg5 {[%clk 0:01:24]}  Nh3 {[%clk 0:00:02]} 61. g6 {[%clk 0:01:21]}  Nf2 {[%clk 0:00:02]} 62. Nf4 {[%clk 0:01:21]}  Ng4+ {[%clk 0:00:02]} 63. Kd6 {[%clk 0:01:20]}  Kg8 {[%clk 0:00:01]} 64. Ke7 {[%clk 0:01:19]}  Ne3 {[%clk 0:00:01]} 65. Ke6 {[%clk 0:01:19]}  Ng4 {[%clk 0:00:01]} 66. Nd3 {[%clk 0:01:18]}  Ne3 {[%clk 0:00:02]} 67. Ne5 {[%clk 0:01:18]}  Ng2 {[%clk 0:00:01]} 68. Nd7 {[%clk 0:01:16]}  Nf4+ {[%clk 0:00:02]} 69. Ke7 {[%clk 0:01:16]}  Nd5+ {[%clk 0:00:02]} 70. Kd6 {[%clk 0:01:16]}  Ne3 {[%clk 0:00:02]} 71. Ke5 {[%clk 0:01:17]}  Nc4+ {[%clk 0:00:02]} 72. Kf4 {[%clk 0:01:17]}  Nd6 {[%clk 0:00:02]} 73. Nc5 {[%clk 0:01:17]}  Nc4 {[%clk 0:00:02]} 74. Ne6 {[%clk 0:01:17]}  Nd6 {[%clk 0:00:03]} 75. Kg5 {[%clk 0:01:17]}  Ne4+ {[%clk 0:00:03]} 76. Kf4 {[%clk 0:01:16]}  Nd6 {[%clk 0:00:04]} 77. Ke5 {[%clk 0:01:17]}  Nc4+ {[%clk 0:00:04]} 78. Kd5 {[%clk 0:01:16]}  Ne3+ {[%clk 0:00:05]} 79. Ke4 {[%clk 0:01:17]}  Nc4 {[%clk 0:00:05]} 80. Nf4 {[%clk 0:01:14]}  Nd6+ {[%clk 0:00:05]} 81. Ke5 {[%clk 0:01:15]}  Nc4+ {[%clk 0:00:06]} 82. Ke6 {[%clk 0:01:16]}  Ne3 {[%clk 0:00:06]} 83. f6 {[%clk 0:01:14]}  gxf6 {[%clk 0:00:06]} 84. Kxf6 {[%clk 0:01:14]}  Ng4+ {[%clk 0:00:06]} 85. Kg5 {[%clk 0:01:15]}  Ne5 {[%clk 0:00:06]} 86. Nd5 {[%clk 0:01:15]}  Kg7 {[%clk 0:00:04]} 87. Nf6 {[%clk 0:01:16]}  Nxg6 {[%clk 0:00:04]} 1/2-1/2


[Site "https://www.chess.com"]

[Event "Titled Tuesday Blitz April 11 Early 2023"]
[White "Dominguez Pons, Eric"]
[Black "Dehtiarov, Roman"]
[WhiteFideId "2262916"]
[BlackFideId "14186640"]
[WhiteElo "2302"]
[BlackElo "2189"]
[Result "0-1"]
[Round "05"]
[TimeControl "180+2"]
[Date "2023.04.11"]
[WhiteClock "0:00:20"]
[BlackClock "0:01:27"]

1. d4 {[%clk 0:02:59]}  Nf6 {[%clk 0:02:59]} 2. Nf3 {[%clk 0:02:58]}  e6 {[%clk 0:02:59]} 3. e3 {[%clk 0:02:58]}  d5 {[%clk 0:02:59]} 4. Bd3 {[%clk 0:02:58]}  c5 {[%clk 0:02:59]} 5. c3 {[%clk 0:02:58]}  Nc6 {[%clk 0:03:00]} 6. Nbd2 {[%clk 0:02:58]}  Bd6 {[%clk 0:03:00]} 7. O-O {[%clk 0:02:59]}  O-O {[%clk 0:03:01]} 8. Qe2 {[%clk 0:02:59]}  e5 {[%clk 0:03:01]} 9. dxc5 {[%clk 0:02:54]}  Bxc5 {[%clk 0:02:58]} 10. e4 {[%clk 0:02:55]}  d4 {[%clk 0:02:58]} 11. cxd4 {[%clk 0:02:51]}  Bxd4 {[%clk 0:02:58]} 12. h3 {[%clk 0:02:48]}  Nh5 {[%clk 0:02:48]} 13. Nb3 {[%clk 0:02:47]}  Ng3 {[%clk 0:02:47]} 14. Qd1 {[%clk 0:02:41]}  Nxf1 {[%clk 0:02:47]} 15. Nbxd4 {[%clk 0:02:41]}  Nxd4 {[%clk 0:02:45]} 16. Nxe5 {[%clk 0:02:32]}  Qd6 {[%clk 0:02:40]} 17. Bf4 {[%clk 0:02:04]}  g5 {[%clk 0:02:37]} 18. Bc4 {[%clk 0:01:22]}  gxf4 {[%clk 0:02:33]} 19. Qh5 {[%clk 0:01:22]}  Qf6 {[%clk 0:02:12]} 20. Rxf1 {[%clk 0:01:11]}  Be6 {[%clk 0:02:11]} 21. Bd3 {[%clk 0:00:54]}  Kh8 {[%clk 0:02:08]} 22. Rd1 {[%clk 0:00:44]}  Rad8 {[%clk 0:01:51]} 23. Kh2 {[%clk 0:00:37]}  Rg8 {[%clk 0:01:44]} 24. h4 {[%clk 0:00:32]}  Qg7 {[%clk 0:01:31]} 25. Bf1 {[%clk 0:00:27]}  f6 {[%clk 0:01:27]} 26. Nd3 {[%clk 0:00:20]}  Bg4 {[%clk 0:01:27]} 0-1


[Site "https://www.chess.com"]

[Event "Titled Tuesday Blitz April 11 Early 2023"]
[White "Huber, Benedikt"]
[Black "Liyanage, Ranindu Dilshan"]
[WhiteFideId "12923583"]
[BlackFideId "9915834"]
[WhiteElo "2199"]
[BlackElo "2199"]
[Result "0-1"]
[Round "05"]
[TimeControl "180+2"]
[Date "2023.04.11"]
[WhiteClock "0:00:04"]
[BlackClock "0:00:06"]

1. d4 {[%clk 0:03:00]}  Nf6 {[%clk 0:02:48]} 2. Nc3 {[%clk 0:03:00]}  d5 {[%clk 0:02:47]} 3. Bf4 {[%clk 0:03:00]}  e6 {[%clk 0:02:39]} 4. Nb5 {[%clk 0:02:59]}  Na6 {[%clk 0:02:39]} 5. e3 {[%clk 0:03:00]}  Be7 {[%clk 0:02:37]} 6. Nf3 {[%clk 0:02:57]}  O-O {[%clk 0:02:32]} 7. Be2 {[%clk 0:02:50]}  Nh5 {[%clk 0:02:29]} 8. Be5 {[%clk 0:02:49]}  f6 {[%clk 0:02:20]} 9. Bg3 {[%clk 0:02:49]}  c6 {[%clk 0:02:16]} 10. Nc3 {[%clk 0:02:47]}  c5 {[%clk 0:02:16]} 11. Nd2 {[%clk 0:02:23]}  Nxg3 {[%clk 0:02:11]} 12. hxg3 {[%clk 0:02:24]}  c4 {[%clk 0:01:46]} 13. e4 {[%clk 0:02:14]}  Nc7 {[%clk 0:01:40]} 14. Bf3 {[%clk 0:01:42]}  b5 {[%clk 0:01:33]} 15. exd5 {[%clk 0:01:24]}  exd5 {[%clk 0:01:34]} 16. a4 {[%clk 0:01:24]}  b4 {[%clk 0:01:31]} 17. Ne2 {[%clk 0:01:24]}  Bd6 {[%clk 0:01:27]} 18. Nf4 {[%clk 0:01:19]}  Re8+ {[%clk 0:01:23]} 19. Kf1 {[%clk 0:01:19]}  Bxf4 {[%clk 0:01:17]} 20. gxf4 {[%clk 0:01:20]}  Qd6 {[%clk 0:01:12]} 21. g3 {[%clk 0:01:17]}  Bf5 {[%clk 0:01:10]} 22. Kg2 {[%clk 0:01:09]}  Rab8 {[%clk 0:01:08]} 23. Nf1 {[%clk 0:01:07]}  Be4 {[%clk 0:00:57]} 24. Ne3 {[%clk 0:01:04]}  Bxf3+ {[%clk 0:00:47]} 25. Qxf3 {[%clk 0:01:05]}  Re4 {[%clk 0:00:47]} 26. Qh5 {[%clk 0:00:54]}  h6 {[%clk 0:00:42]} 27. Nf5 {[%clk 0:00:54]}  Qd7 {[%clk 0:00:32]} 28. Qg6 {[%clk 0:00:50]}  Kf8 {[%clk 0:00:31]} 29. Rxh6 {[%clk 0:00:39]}  gxh6 {[%clk 0:00:32]} 30. Qxh6+ {[%clk 0:00:39]}  Kf7 {[%clk 0:00:19]} 31. Qg7+ {[%clk 0:00:12]}  Ke6 {[%clk 0:00:19]} 32. Qg4 {[%clk 0:00:13]}  Qc8 {[%clk 0:00:07]} 33. Rh1 {[%clk 0:00:11]}  Qg8 {[%clk 0:00:05]} 34. Ng7+ {[%clk 0:00:06]}  Kd6 {[%clk 0:00:05]} 35. Rh6 {[%clk 0:00:06]}  Ne8 {[%clk 0:00:03]} 36. Rg6 {[%clk 0:00:04]}  Qf7 {[%clk 0:00:03]} 37. Qf5 {[%clk 0:00:04]}  Nxg7 {[%clk 0:00:02]} 38. Qg4 {[%clk 0:00:02]}  Ne6 {[%clk 0:00:02]} 39. Qh4 {[%clk 0:00:03]}  Qe7 {[%clk 0:00:02]} 40. Rxf6 {[%clk 0:00:03]}  Re8 {[%clk 0:00:03]} 41. f5 {[%clk 0:00:02]}  Kd7 {[%clk 0:00:02]} 42. fxe6+ {[%clk 0:00:03]}  Rxe6 {[%clk 0:00:03]} 43. Qh5 {[%clk 0:00:01]}  Qxf6 {[%clk 0:00:03]} 44. Qxd5+ {[%clk 0:00:01]}  Rd6 {[%clk 0:00:04]} 45. Qb7+ {[%clk 0:00:02]}  Kd8 {[%clk 0:00:05]} 46. Qb8+ {[%clk 0:00:01]}  Ke7 {[%clk 0:00:05]} 47. Qb7+ {[%clk 0:00:02]}  Kf8 {[%clk 0:00:06]} 48. d5 {[%clk 0:00:02]}  Qe5 {[%clk 0:00:06]} 49. Qh7 {[%clk 0:00:02]}  Qxd5+ {[%clk 0:00:06]} 50. Kh2 {[%clk 0:00:02]}  Qf7 {[%clk 0:00:06]} 51. Qh8+ {[%clk 0:00:03]}  Ke7 {[%clk 0:00:07]} 52. Qh4+ {[%clk 0:00:04]}  Rf6 {[%clk 0:00:06]} 0-1


[Site "https://www.chess.com"]

[Event "Titled Tuesday Blitz April 11 Early 2023"]
[White "Rohith Krishna S"]
[Black "Marcziter, Dmitrii"]
[WhiteFideId "46617051"]
[BlackFideId "13900765"]
[WhiteElo "2270"]
[BlackElo "2162"]
[Result "1-0"]
[Round "05"]
[TimeControl "180+2"]
[Date "2023.04.11"]
[WhiteClock "0:00:53"]
[BlackClock "0:00:20"]

1. d4 {[%clk 0:03:00]}  d5 {[%clk 0:02:58]} 2. c4 {[%clk 0:03:00]}  e6 {[%clk 0:02:58]} 3. Nc3 {[%clk 0:03:01]}  c5 {[%clk 0:02:58]} 4. cxd5 {[%clk 0:03:01]}  exd5 {[%clk 0:02:59]} 5. Nf3 {[%clk 0:03:01]}  Nc6 {[%clk 0:02:59]} 6. e3 {[%clk 0:02:56]}  Nf6 {[%clk 0:02:56]} 7. a3 {[%clk 0:02:55]}  c4 {[%clk 0:02:54]} 8. Be2 {[%clk 0:02:54]}  Bd6 {[%clk 0:02:51]} 9. O-O {[%clk 0:02:55]}  O-O {[%clk 0:02:50]} 10. b3 {[%clk 0:02:55]}  Na5 {[%clk 0:02:45]} 11. bxc4 {[%clk 0:02:55]}  Nxc4 {[%clk 0:02:45]} 12. Nxd5 {[%clk 0:02:54]}  Bxh2+ {[%clk 0:02:33]} 13. Nxh2 {[%clk 0:02:42]}  Qxd5 {[%clk 0:02:32]} 14. Rb1 {[%clk 0:02:42]}  Nb6 {[%clk 0:02:27]} 15. a4 {[%clk 0:02:41]}  Bf5 {[%clk 0:02:24]} 16. Rb5 {[%clk 0:02:40]}  Qd7 {[%clk 0:02:20]} 17. Ba3 {[%clk 0:02:37]}  Rfe8 {[%clk 0:02:14]} 18. Qb3 {[%clk 0:02:36]}  Ne4 {[%clk 0:02:08]} 19. Bb4 {[%clk 0:02:14]}  Be6 {[%clk 0:02:04]} 20. Qb1 {[%clk 0:02:13]}  Bd5 {[%clk 0:01:58]} 21. a5 {[%clk 0:02:12]}  Nc4 {[%clk 0:01:51]} 22. Rxd5 {[%clk 0:01:47]}  Qxd5 {[%clk 0:01:50]} 23. Qa2 {[%clk 0:01:47]}  Nxe3 {[%clk 0:01:36]} 24. Qxd5 {[%clk 0:01:45]}  Nxd5 {[%clk 0:01:36]} 25. Be1 {[%clk 0:01:45]}  Nf4 {[%clk 0:01:26]} 26. Bf3 {[%clk 0:01:42]}  Rad8 {[%clk 0:01:24]} 27. Ng4 {[%clk 0:01:39]}  Rxd4 {[%clk 0:01:15]} 28. Ne3 {[%clk 0:01:39]}  Nd3 {[%clk 0:01:04]} 29. Nf5 {[%clk 0:01:38]}  Rd5 {[%clk 0:00:57]} 30. Ng3 {[%clk 0:01:38]}  f5 {[%clk 0:00:57]} 31. Bd2 {[%clk 0:01:35]}  Rb5 {[%clk 0:00:51]} 32. Nxe4 {[%clk 0:01:18]}  fxe4 {[%clk 0:00:50]} 33. Bg4 {[%clk 0:01:18]}  Ne5 {[%clk 0:00:41]} 34. Bh3 {[%clk 0:01:19]}  Rd8 {[%clk 0:00:39]} 35. Bf4 {[%clk 0:01:17]}  Rxa5 {[%clk 0:00:38]} 36. Rb1 {[%clk 0:01:10]}  b6 {[%clk 0:00:37]} 37. Bg3 {[%clk 0:00:58]}  Rad5 {[%clk 0:00:35]} 38. Rb4 {[%clk 0:00:58]}  Nd3 {[%clk 0:00:29]} 39. Rxe4 {[%clk 0:00:56]}  a5 {[%clk 0:00:29]} 40. Re7 {[%clk 0:00:54]}  a4 {[%clk 0:00:25]} 41. Bc7 {[%clk 0:00:53]}  Ra8 {[%clk 0:00:22]} 42. Be6+ {[%clk 0:00:52]}  Kf8 {[%clk 0:00:21]} 43. Rf7+ {[%clk 0:00:53]}  Ke8 {[%clk 0:00:21]} 44. Bxd5 {[%clk 0:00:53]}  a3 {[%clk 0:00:20]} 45. Rxg7 {[%clk 0:00:51]}  a2 {[%clk 0:00:19]} 46. Rg8+ {[%clk 0:00:52]}  Kd7 {[%clk 0:00:18]} 47. Rxa8 {[%clk 0:00:53]}  Kxc7 {[%clk 0:00:18]} 48. Bxa2 {[%clk 0:00:53]}  Kd6 {[%clk 0:00:19]} 49. Ra3 {[%clk 0:00:53]}  Kc5 {[%clk 0:00:20]} 50. Rxd3 {[%clk 0:00:53]} 1-0


[Site "https://www.chess.com"]

[Event "Titled Tuesday Blitz April 11 Early 2023"]
[White "Wong, Yinn Long"]
[Black "Haub, Thorsten Michael"]
[WhiteFideId "5707684"]
[BlackFideId "4610776"]
[WhiteElo "2271"]
[BlackElo "2344"]
[Result "1-0"]
[Round "05"]
[TimeControl "180+2"]
[Date "2023.04.11"]
[WhiteClock "0:00:08"]
[BlackClock "0:00:17"]

1. b3 {[%clk 0:02:54]}  d6 {[%clk 0:02:58]} 2. Bb2 {[%clk 0:02:53]}  e5 {[%clk 0:02:58]} 3. d3 {[%clk 0:02:54]}  Nf6 {[%clk 0:02:57]} 4. c4 {[%clk 0:02:54]}  g6 {[%clk 0:02:56]} 5. g3 {[%clk 0:02:52]}  Bg7 {[%clk 0:02:55]} 6. Bg2 {[%clk 0:02:52]}  O-O {[%clk 0:02:55]} 7. Qc2 {[%clk 0:02:52]}  Qe7 {[%clk 0:02:54]} 8. a3 {[%clk 0:02:50]}  Nc6 {[%clk 0:02:52]} 9. Nd2 {[%clk 0:02:50]}  a5 {[%clk 0:02:48]} 10. e3 {[%clk 0:02:48]}  Nh5 {[%clk 0:02:45]} 11. Ne2 {[%clk 0:02:39]}  f5 {[%clk 0:02:45]} 12. Bd5+ {[%clk 0:02:38]}  Kh8 {[%clk 0:02:44]} 13. O-O-O {[%clk 0:02:35]}  Be6 {[%clk 0:02:39]} 14. Nc3 {[%clk 0:02:34]}  Nf6 {[%clk 0:02:36]} 15. Bxe6 {[%clk 0:02:21]}  Qxe6 {[%clk 0:02:35]} 16. Rhe1 {[%clk 0:02:11]}  d5 {[%clk 0:02:33]} 17. cxd5 {[%clk 0:02:10]}  Nxd5 {[%clk 0:02:33]} 18. Nxd5 {[%clk 0:02:08]}  Qxd5 {[%clk 0:02:33]} 19. Qc4 {[%clk 0:02:08]}  Qd6 {[%clk 0:02:30]} 20. f4 {[%clk 0:02:04]}  Rfd8 {[%clk 0:02:22]} 21. Nf3 {[%clk 0:02:01]}  Rd7 {[%clk 0:02:07]} 22. Kc2 {[%clk 0:01:45]}  Rb8 {[%clk 0:02:02]} 23. fxe5 {[%clk 0:01:16]}  Nxe5 {[%clk 0:01:58]} 24. Nxe5 {[%clk 0:00:55]}  Bxe5 {[%clk 0:01:57]} 25. Bxe5+ {[%clk 0:00:56]}  Qxe5 {[%clk 0:01:57]} 26. Qc3 {[%clk 0:00:57]}  Qxc3+ {[%clk 0:01:49]} 27. Kxc3 {[%clk 0:00:57]}  Re8 {[%clk 0:01:48]} 28. Rb1 {[%clk 0:00:52]}  b6 {[%clk 0:01:45]} 29. b4 {[%clk 0:00:49]}  axb4+ {[%clk 0:01:45]} 30. axb4 {[%clk 0:00:50]}  Rde7 {[%clk 0:01:43]} 31. Kd2 {[%clk 0:00:50]}  Kg7 {[%clk 0:01:43]} 32. Rbc1 {[%clk 0:00:50]}  Rd8 {[%clk 0:01:40]} 33. Rc3 {[%clk 0:00:50]}  Rdd7 {[%clk 0:01:38]} 34. Ra1 {[%clk 0:00:45]}  g5 {[%clk 0:01:34]} 35. Rc6 {[%clk 0:00:42]}  Rf7 {[%clk 0:01:13]} 36. Rf1 {[%clk 0:00:37]}  Rf6 {[%clk 0:01:11]} 37. Rxf6 {[%clk 0:00:34]}  Kxf6 {[%clk 0:01:10]} 38. e4 {[%clk 0:00:27]}  f4 {[%clk 0:01:09]} 39. gxf4 {[%clk 0:00:27]}  gxf4 {[%clk 0:01:08]} 40. Rxf4+ {[%clk 0:00:28]}  Ke6 {[%clk 0:01:08]} 41. Ke3 {[%clk 0:00:25]}  Rg7 {[%clk 0:01:05]} 42. Rh4 {[%clk 0:00:25]}  Kd6 {[%clk 0:01:01]} 43. Kd4 {[%clk 0:00:24]}  Kc6 {[%clk 0:00:59]} 44. Kc4 {[%clk 0:00:23]}  b5+ {[%clk 0:00:56]} 45. Kd4 {[%clk 0:00:24]}  Kb6 {[%clk 0:00:55]} 46. Rh6+ {[%clk 0:00:24]}  c6 {[%clk 0:00:54]} 47. h3 {[%clk 0:00:22]}  Kb7 {[%clk 0:00:47]} 48. e5 {[%clk 0:00:18]}  Rd7+ {[%clk 0:00:43]} 49. Ke4 {[%clk 0:00:18]}  Kc7 {[%clk 0:00:42]} 50. e6 {[%clk 0:00:16]}  Rg7 {[%clk 0:00:40]} 51. Ke5 {[%clk 0:00:16]}  c5 {[%clk 0:00:36]} 52. Kf6 {[%clk 0:00:12]}  Rg3 {[%clk 0:00:33]} 53. Rxh7+ {[%clk 0:00:10]}  Kc6 {[%clk 0:00:33]} 54. bxc5 {[%clk 0:00:11]}  b4 {[%clk 0:00:31]} 55. Rh8 {[%clk 0:00:09]}  Rxd3 {[%clk 0:00:27]} 56. e7 {[%clk 0:00:08]}  Rf3+ {[%clk 0:00:25]} 57. Kg5 {[%clk 0:00:08]}  Re3 {[%clk 0:00:17]} 58. e8=Q+ {[%clk 0:00:08]} 1-0


[Site "https://www.chess.com"]